Cogmind - Beta 15 @@@ ROGUE MODE // 2025.09.12 @ 16:06:19 Player: winnking222 Result: Destroyed by D-53 Grenadier with Mini Grenade Launcher Performance ------------- Evolutions (0) 0 Regions Visited (2) 400 Robots Destroyed (21) 105 Value Destroyed (440) 440 Prototype IDs (4) 80 Alien Tech Used (0) 0 Bonus (0) 0 TOTAL SCORE: 1025 Bonus ------- None Cogmind --------- Core Integrity 0/250 Matter 282/300 Energy 100/100 System Corruption 0% Temperature Cool (0) Movement Core (400) Ox7 Location -10/Mines Parts ------- > --- POWER (1) -------- (None) > --- PROPULSION (2) --- (None) > --- UTILITY (2) ------ Large Storage Unit Seismic Detector > --- WEAPON (2) ------- Assault Rifle > --- INVENTORY (15) --- Light Ion Engine Light Treads Light Treads Wheel Wheel High-capacity Matter Pod (200) Medium Laser Assault Rifle Assault Rifle Assault Rifle Grenade Launcher Hammer Peak State ------------ > --- POWER ------------ Light Ion Engine > --- PROPULSION ------- Light Treads Light Treads > --- UTILITY ---------- Small Storage Unit Large Storage Unit > --- WEAPON ----------- Assault Rifle Light Assault Rifle > --- INVENTORY -------- Ion Engine Light Treads Aluminum Leg Aluminum Leg Wheel Wheel Large Matter Pod Seismic Detector Medium Laser Hammer [Rating: 8] Favorites ----------- Power Light Ion Engine Engine Light Ion Engine Propulsion Light Treads Treads Light Treads Utility Seismic Detector Device Seismic Detector Storage Large Storage Unit Weapon Assault Rifle Ballistic Gun Assault Rifle Build | -11 -10 -10 ------- Run | Yrd Mat Min Slots Evolved . | . . . Power . | . . . Propulsion . | . . . Utility . | . . . Weapon . | . . . Parts Attached 16 | 7 6 3 Power 2 | 1 1 . Engine 2 | 1 1 . Core . | . . . Reactor . | . . . Propulsion 4 | 2 1 1 Treads 4 | 2 1 1 Leg . | . . . Wheel . | . . . Hover . | . . . Flight . | . . . Utility 4 | 2 2 . Device 2 | 1 1 . Storage 2 | 1 1 . Processor . | . . . Hackware . | . . . Protection . | . . . Artifact . | . . . Weapon 6 | 2 2 2 Energy Gun . | . . . Energy Cannon . | . . . Ballistic Gun 6 | 2 2 2 Ballistic Cannon . | . . . Launcher . | . . . Special Weapon . | . . . Impact Weapon . | . . . Slashing Weapon . | . . . Piercing Weapon . | . . . Special Melee Weapon . | . . . Unidentified Prototypes . | . . . Parts Lost 8 | . 1 7 Power 1 | . . 1 Propulsion 3 | . . 3 Utility 1 | . 1 . Weapon 3 | . . 3 Highest Loss Streak 5 | . 1 5 To Critical Strikes . | . . . Average Backups 10 | 5 10 13 Power . | . 1 1 Propulsion 4 | 3 4 4 Utility . | . 1 . Weapon 4 | . 3 7 Tool/Special . | . . . Unused Backups 13 | . 2 11 Power . | . . . Propulsion 6 | . 2 4 Utility 2 | . . 2 Weapon 5 | . . 5 Tool/Special . | . . . Average Slot Usage (%) 98 | . 98 98 Engine 13 | . 14 13 Treads 27 | . 28 27 Device 13 | . 12 14 Storage 14 | . 14 14 Ballistic Gun 27 | . 28 27 Peak Build Rating 8 | 7 8 8 Average Rating 7 | 6 7 7 On Entrance 5 | . 7 8 Naked Turns . | . . . Heaviest Build 31 | 12 31 30 Greatest Support 40 | 40 40 40 Greatest Overweight (x) 1 | . . 1 Average Overweight (x) . | . . . Largest Inventory Capacity 15 | 8 15 15 Average Capacity 12 | 7 12 15 Most Carried 15 | 7 15 15 Average Carried 10 | 6 10 13 Final Capacity 15 | 8 15 15 Final Carried 15 | 7 15 12 Class Distribution -------------------- 100% | Mutant Dominant Class ---------------- Mutant | -10/Materials Mutant | -10/Mines Resources | -11 -10 -10 ----------- Run | Yrd Mat Min Matter Collected 804 | 328 373 103 Remotely . | . . . Salvage Created 640 | 168 303 169 Parts 38 | 10 20 8 Haulers Intercepted . | . . . Recyclers Shooed . | . . . Parts Field Recycled . | . . . Retrieved Matter . | . . . Parts Self-Destructed . | . . . Prevented . | . . . Kills | -11 -10 -10 ------- Run | Yrd Mat Min Combat Hostiles Destroyed 14 | . 10 4 Guns 14 | . 10 4 Classes Destroyed 6 | 2 4 . Tunneler 5 | 5 . . Recycler 1 | 1 . . Watcher 1 | . 1 . Swarmer 6 | . 6 . Grunt 6 | . 2 4 Subdweller 2 | . 2 . Best Kill Streak 4 | 2 4 2 Combat Bots Only 4 | . 4 2 Max Kills in Single Turn 1 | 1 1 1 Gunslinging . | . . . Exploded . | . . . Melee . | . . . Uniques/NPCs Destroyed . | . . . Combat | -11 -10 -10 -------- Run | Yrd Mat Min Hostile Shots Fired 108 | . 58 50 Missed 31 | . 20 11 Hits 77 | . 38 39 Melee 1 | . . 1 Projectile 76 | . 38 38 AOE 13 | . . 13 Critical Strikes 2 | . . 2 Damage Taken 1354 | . 437 917 Core 251 | . 45 206 Absorbed by Shields . | . . . Core Remaining (%) 100 | 100 . . Volleys Fired 83 | 23 39 21 Largest 2 | 2 2 2 Hottest 40 | 40 40 40 Shots Fired 165 | 46 78 41 Gun 165 | 46 78 41 Cannon . | . . . Launcher . | . . . Special . | . . . Kinetic 165 | 46 78 41 Thermal . | . . . Explosive . | . . . Electromagnetic . | . . . Robot Hit Streak 11 | 6 5 11 Robot Miss Streak 4 | 3 4 2 Penetration Max . | . . . Secondary Targets 3 | . 2 1 Max Gunslinging Chain 1 | . 1 1 Shots Hit Robots 96 | 26 38 32 Core Hits 42 | 9 21 12 Critical Kills . | . . . Critical Parts Destroyed . | . . . Critical Strikes . | . . . Melee Attacks . | . . . Impact . | . . . Slashing . | . . . Piercing . | . . . Sneak Attacks . | . . . Combat Hostiles . | . . . Follow-up Attacks . | . . . Damage Inflicted 1181 | 317 460 404 Guns 1155 | 291 460 404 Cannons . | . . . Explosions . | . . . Melee . | . . . Ramming 26 | 26 . . Kinetic 1155 | 291 460 404 Thermal . | . . . Explosive . | . . . Electromagnetic . | . . . Impact . | . . . Slashing . | . . . Piercing . | . . . Highest Corruption . | . . . Average Corruption . | . . . Corruption Purged . | . . . Corruption Blocked . | . . . Overload Shots . | . . . Overflow Damage . | . . . Projectiles . | . . . Explosions . | . . . Melee . | . . . Knockbacks . | . . . Impact . | . . . Kinetic . | . . . Secondary . | . . . Self-Inflicted Damage . | . . . Shots . | . . . Rammed 9 | 9 . . Targets Rammed 10 | 10 . . Kicked . | . . . Crushed 1 | 1 . . Highest Temperature 29 | . 18 29 Average Temperature 11 | . 9 12 Received Heat Transfer 318 | . 105 213 Siege Activations . | . . . Martial Activations . | . . . Shielding Activations . | . . . Robots Disrupted . | . . . Combat Hostiles . | . . . Robots Corrupted . | . . . Combat Hostiles . | . . . Parts Fried . | . . . Impact Corruptions . | . . . Robots Melted . | . . . Combat Hostiles . | . . . Parts Melted . | . . . Heat Transferred . | . . . Parts Sabotaged . | . . . Parts Stolen . | . . . Parts Stripped . | . . . Power Chain Reactions . | . . . Alert | -11 -10 -10 ------- Run | Yrd Mat Min Maximum Alert Level . | . . . Low Security (%) 100 | 100 100 100 Level 1 . | . . . Level 2 . | . . . Level 3 . | . . . Level 4 . | . . . Level 5 . | . . . High Security . | . . . Max Security . | . . . Peak Influence 80 | 10 80 50 Initial 3 | . 3 . Average 5 | . 7 5 Influence Increases 343 | 30 213 100 Destroy 0b10 Robot/C 240 | . 160 80 Destroy 0b10 Robot/NC 35 | 30 5 . Destroy Leader 52 | . 32 20 Successful Hack 16 | . 16 . Influence Decreases 343 | 25 218 100 Entered New Map 2 | . 2 . Time Decay 222 | 25 97 100 Lost Part 10 | . 10 . Purge Threat 109 | . 109 . Squads Dispatched . | . . . Investigation . | . . . Extermination . | . . . Reinforcement . | . . . Assault . | . . . Garrison . | . . . Intercept . | . . . Searches Triggered . | . . . Construction Impeded . | . . . Haulers Reinforced . | . . . Active Scanning Responses . | . . . Cargo Convoy Interrupts . | . . . Stealth | -11 -10 -10 --------- Run | Yrd Mat Min Distress Signals . | . . . Communications Jammed . | . . . Distress Signals . | . . . Times Spotted 28 | . 13 15 Peak Tracking Total 12 | . 4 12 Tactical Retreats 1 | . . 1 Traps | -11 -10 -10 ------- Run | Yrd Mat Min Traps Triggered . | . . . Indirectly . | . . . Trap Hack Attempts . | . . . Triggered . | . . . Disarmed . | . . . Reprogrammed . | . . . Reused . | . . . Traps Extracted . | . . . Installed . | . . . Triggered . | . . . Machines | -11 -10 -10 ---------- Run | Yrd Mat Min Machines Disabled . | . . . Max in Single Turn . | . . . Machines Repaired . | . . . Machines Dismantled . | . . . Machines Sabotaged . | . . . Overloaded Fab Kills . | . . . Hacking | -11 -10 -10 --------- Run | Yrd Mat Min Machines Accessed 7 | . 7 . Terminals 7 | . 7 . Fabricators . | . . . Repair Stations . | . . . Recycling Units . | . . . Scanalyzers . | . . . Garrison Access . | . . . Total Hacks 24 | . 24 . Successful 13 | . 13 . Failed 10 | . 10 . Catastrophic . | . . . Database Lockouts 1 | . 1 . Manual 13 | . 13 . Terminals 24 | . 24 . Fabricators . | . . . Repair Stations . | . . . Recycling Units . | . . . Scanalyzers . | . . . Garrison Access . | . . . Terminal Hacks 6 | . 6 . Prototype ID Bank 2 | . 2 . Unreport Threat 2 | . 2 . Locate Traps 1 | . 1 . Zone Layout 1 | . 1 . Fabricator Hacks . | . . . Repair Station Hacks . | . . . Recycling Unit Hacks . | . . . Scanalyzer . | . . . Garrison Access Hacks . | . . . Unauthorized Hacks 7 | . 7 . Terminals 7 | . 7 . Botnet 2 | . 2 . Skim 5 | . 5 . Fabricators . | . . . Repair Stations . | . . . Recycling Units . | . . . Scanalyzers . | . . . Garrison Access . | . . . Data Cores Recovered . | . . . Used . | . . . Hacking Detections 3 | . 3 . Full Trace Events 1 | . 1 . Feedback Events . | . . . Feedback Blocked . | . . . Robot Schematics Acquired . | . . . Robots Built . | . . . Authchips . | . . . Time . | . . . Total Robot Build Rating . | . . . Part Schematics Acquired . | . . . Parts Built . | . . . Authchips . | . . . Time . | . . . Total Part Build Rating . | . . . Parts Repaired . | . . . Time . | . . . Parts Recycled . | . . . Recycled Matter . | . . . Retrieved Matter . | . . . Retrieved Components . | . . . Parts Scanalyzed . | . . . Part Schematics Acquired . | . . . Parts Damaged . | . . . Bothacking | -11 -10 -10 ------------ Run | Yrd Mat Min Used RIF Installer . | . . . Robots Hacked . | . . . Non-combat . | . . . Combat . | . . . Robot Hacks Applied . | . . . Relay Couplers Released . | . . . Fabnet Peak Effective % . | . . . Robots Rewired . | . . . Allies Hacked . | . . . Hacks Repelled . | . . . Allies | -11 -10 -10 -------- Run | Yrd Mat Min Total Allies . | . . . Largest Group . | . . . Highest-Rated Group . | . . . Highest-Rated Ally . | . . . Total Orders . | . . . Ally Attacks . | . . . Total Damage . | . . . Kills . | . . . Allies Corrupted . | . . . Allies Melted . | . . . Intel | -11 -10 -10 ------- Run | Yrd Mat Min Active Infowar (turns) 2111 | 212 1059 840 Seismic 2111 | 212 1059 840 Robot Analysis Total . | . . . Derelict Logs Recovered 1 | . . 1 Drone Launches . | . . . Drone Recoveries . | . . . Exploration | -11 -10 -10 ------------- Run | Yrd Mat Min Turns Passed 2385 | 349 1196 840 Spaces Moved 1104 | 165 470 469 Core 13 | 13 . . Treads 1091 | 152 470 469 Legs . | . . . Wheels . | . . . Hover . | . . . Flight . | . . . Fastest Speed 50 | 50 160 160 Average Speed 158 | 151 160 160 Slowest Speed 240 | 160 160 240 Overloaded Moves . | . . . Propulsion Burnouts . | . . . Robots Hopped . | . . . Potential Cave-ins . | . . . Cave-ins Triggered . | . . . Exploration Rate (%) 56 | 9 88 71 Regions Visited 2 Branch Regions 1 Pre-discovered Areas 2 | . 1 1 Known Exits Taken 1 | . 1 . Unknown Exits Taken 1 | 1 . . Scrap Searched 1 | . . 1 Spaces Dug . | . . . Terrain Destroyed . | . . . Melee . | . . . Projectile . | . . . AOE . | . . . Terrain Rammed . | . . . Walls Destroyed . | . . . Machines Disabled . | . . . Actions | -11 -10 -10 --------- Run | Yrd Mat Min Total 1576 | 217 843 516 Wait 333 | . 312 21 Move 1102 | 164 469 469 Hop . | . . . Pick Up 26 | 13 12 1 Fast Attach 2 | 1 1 . Attach 10 | 6 1 3 Detach . | . . . Swap 4 | . 4 . Drop 6 | . 5 1 Fire 83 | 23 39 21 Melee . | . . . Ram . | . . . Kick . | . . . Crush 10 | 10 . . Escape Stasis . | . . . Rewire . | . . . Trap . | . . . Miscellaneous . | . . . Route ------- -11/Scrapyard -10/Materials (discovered 6 exits: *Mat x3 / *Min x2 / *Sub) -10/Mines (discovered 2 exits: *Mat x2) History --------- Turn | Location | Event 8 | -11/Scrapyard | Discovered new exit (range 15) 350 | -11/Scrapyard | Entered Materials 351 | -10/Materials | Build established: Mutant 820 | -10/Materials | Discovered new exit (range 16) 907 | -10/Materials | Loaded intel: 7 trap records 963 | -10/Materials | Learned location of Subcaves (-10) 1009 | -10/Materials | Learned location of 1 exit from Storage 1013 | -10/Materials | Discovered new exit (range 16) 1045 | -10/Materials | Identified exit to Subcaves 1045 | -10/Materials | Identified exit to Mines 1050 | -10/Materials | Derelicts attacked the area 1069 | -10/Materials | Learned Storage garrison access intel 1081 | -10/Materials | Learned Storage garrison access intel 1083 | -10/Materials | Learned Storage security intel 1093 | -10/Materials | Learned 4 Subcaves zone layouts 1113 | -10/Materials | Identified exit to Materials 1503 | -10/Materials | Central database locked down 1546 | -10/Materials | Entered Mines 1673 | -10/Mines | Discovered exit to Materials (range 10) 2183 | -10/Mines | Learned location of Zion (-7) 2214 | -10/Mines | Discovered exit to Materials (range 10) 2331 | -10/Mines | Assembled infested the area 2367 | -10/Mines | Core integrity fell below 50% 2385 | -10/Mines | Core integrity fell below 20% 2386 | -10/Mines | Destroyed by D-53 Grenadier with Mini Grenade Launcher Last Messages --------------- 02369_ Assault Rifle destroyed. 02370_ D-53 Grenadier destroyed. 02372_ K-01 Serf cleans the Seismic Survey Station. 02373_ The unstable cave ceiling collapses. 02374_ as-98740 destroyed. 02374_ as-85749 destroyed. 02376_ K-01 Serf collects debris. 02376_ as-62220 destroyed. 02376_ as-42244 destroyed. 02378_ as-68641 destroyed. 02378_ Seismic Survey Station disabled. 02379_ The unstable cave ceiling collapses. 02379_ K-01 Serf collects debris. 02381_ The unstable cave ceiling collapses. 02382_ U-05 Engineer lays Concrete. 02382_ Lgt. Treads destroyed. 02382_ K-01 Serf destroyed. 02383_ U-05 Engineer builds a Wall. 02384_ The unstable cave ceiling collapses. 02386_ Assault Rifle destroyed. Map ----- +----------------------------------------------------+ | ?????????????????????????????????????????????????? | | ?????????????????????????????????????????????????? | | ?????????????????????????????????????????????????? | | ?????????????????????????????????????????????????? | | ?????????????????????????????????????????????????? | | ?????????????????????????????????????????????????? | | ?????????????????????????????????????????????????? | | ?????????????????????????????????????????????????? | | ?????????????????????????????????????????????????? | | ?????????????????????????????????????????????????? | | ?????????????????????????????????????????????????? | | ???????????????????????????? ???????????????????? | | ??????????????????????????? ????????????????????? | | ??????????????????????????? ????????????????????? | | ???????????????????????##?? ?????????????######## | | ?????????????????????### ## ?????????????# | | ?????????????????????# #??????? #????# ##### | | ??????????????????#### ###???? #?????# ????? | | ??????????? a% ##? #?????# ?????? | | ??????????????????#### # #????? ?????? | | ????????????????????# # ####?# ??????? | | ????????????????????# du" ??????? | | ????????????????????## ## #???##???????? | | ??????????????????### #? ?????????????? | | ????????????????### # #? #????????????? | | ???????????????## @ ##? #?????????#### | | ???????????????# "" #?? #?????????# | | ???????????????# "" ###?# #?????????# | | ???????????????# """ #???# #?????????# # | | ???????????????## ## ##???# #?????????# # | | ????????????????## #####??###????# #?????????# | | ?????????????????# #?????????????# #????????## | | ?????????????????# #?????????????# #???????## | | ???????####??????# #?????????????# #???????# "" | | ??????## ######## #####?????????# #??????## "" | | ??????# ## #?????????# #???#### "" | | ??????# ### #?????????# #??## | | ??????# #####?# ######????# #??# | | ?????## #?????# #??### ##?# | | ????## ##?????###### #?## ### | | ##### ##???????????# #?# ## ###### | | # ######????????????# ### ##????## | | ##????????????#????# ## ##?????## | | #???????????? #???# ######## | | """" ##?????????? ?????##### < !] | | # """" ##???????? ?????###### ## ! %! | | # """" ##?????? ??????# ### ######## | | # #????? #???????# #### %#?########??????? | | ## ##### #???????# #??# #???????????????? | | ?##### #???????# #??# #???????????????? | +----------------------------------------------------+ Best States ------------- Heat Dissipation 25 Energy Generation 10 Energy Capacity 250 Matter Stores 300 Matter Capacity 300 Sight Range 16 Terrain Scan Density 10 Evasion (%) 50 Recoil Reduction 2 Item Schematics ----------------- None Robot Schematics ------------------ None Fabricated ------------ Nothing Repaired ---------- Nothing Alien Tech Used ----------------- None Achievements -------------- None Challenges ------------ None Game ------ Seed HypertargetingReflexWheel Manual? 0 Play Time 00:12:28 Cumulative 176.1 hours Start 2025.09.12 @ 15:54:00 End 2025.09.12 @ 16:06:19 Sessions 1 Manual Loads 0 Difficulty Rogue Special Mode None Game No. 244 Rogue 244 Adventurer 0 Explorer 0 Win Type - Total 2 Types 2/0/0/0/0/0/0/0/0/0 Lore% 72 Gallery% 69 Achievement% 60 Wizard Run 0 Options --------- Layout 0 ASCII 0 Keyboard 0 Movement Mouse Keybinds 0 Fullscreen 1 Font 16/SmallcapsGlow Map View 75x55 Zoom Use 0% Tactical HUD 1 Map Filters NONE Filters NONE Steam 1 RUN: 9031a82e-faa0-4881-a4b1-9d8ff3c3c1af